[Event "Pashayeva Memorial Rapid 2025"]
[Site "Baku"]
[Date "2025.03.03"]
[Round "5.4"]
[White "Yakubbaeva, Nilufar"]
[Black "Mamedjarova, Turkan"]
[Result "0-1"]
[Annotator "TA"]
[ECO "D45"]
[WhiteElo "2187"]
[BlackElo "2197"]
[PlyCount "138"]
[EventDate "2025.03.01"]
[EventType "tourn"]
[EventCountry "AZE"]
[SourceTitle "playchess.com"]
[Source "ChessBase"]
[SourceQuality "1"]
[TimeControl "900+10"]

{[%evp 16,138,7,0,15,0,10,0,63,62,79,70,79,45,83,38,55,48,88,84,118,95,118,77,86,93,91,87,95,63,62,76,85,69,92,68,90,87,85,71,70,75,78,69,79,71,68,71,76,67,72,62,75,62,82,71,81,72,69,62,71,59,81,29,33,30,19,17,17,17,18,26,28,28,22,0,0,0,0,0,0,0,0,0,0,0,0,-188,-243,-258,-243,-226,-230,-358,-248,-279,-185,-246,-246,-293,-149,-351,-318,-364,-355,-331,-331,-2121,-1864,-5722,-4593,-29980,-29981,-29984,-29984,-29986,-29987,-29988,-29986,-29989,-29986,-29987,-29988,-29990,-29988]} 1. d4 {[%emt 0:00:03]} Nf6 {[%emt 0:00:02]} 2. Nf3 {[%emt 0:00:04]} e6 {[%emt 0:00:00]} 3. c4 {[%emt 0:00:02]} d5 {[%emt 0:00:01]} 4. Nc3 {[%emt 0:00:03]} c6 {[%emt 0:00:08]} 5. e3 {[%emt 0:00:07]} Nbd7 {[%emt 0:00:07]} 6. Be2 {[%emt 0:00:15]} Bd6 {[%emt 0:00:59]} 7. O-O {[%emt 0:00:04]} O-O {[%emt 0:00:02]} 8. b3 {[%emt 0:00:34]} Re8 {[%emt 0:00:47]} 9. Bb2 {[%emt 0:00:09]} b6 {[%emt 0:00:28] D45: Semi-Slav: 5 e3.} 10. Rc1 {[%emt 0:00:32] has lost popularity (10.a4).} Bb7 {[%emt 0:00:02]} 11. Nd2 $146 {[%emt 0:00:57]} (11. Re1 Rc8 12. Bf1 c5 13. cxd5 exd5 14. g3 Qe7 15. Bg2 c4 16. bxc4 Rxc4 17. Nd2 {1-0 Tomashevsky,E (2706)-Kobalia,M (2614) Razuvaev Memorial online blitz 2020 (1)}) 11... e5 {[%emt 0:00:37]} (11... Rc8 $11) 12. cxd5 $1 $14 {[%emt 0:00:08]} cxd5 {[%emt 0:01:01]} 13. Nb5 {[%emt 0:00:08]} Bb8 {[%emt 0:00:02]} 14. dxe5 {[%emt 0:00:05]} Nxe5 {[%emt 0:00:12]} 15. Nd4 {[%emt 0:00:19]} a6 {[%emt 0:00:20]} 16. N2f3 {[%emt 0:01:26][%csl Od4] Strong Square White (d4)} Ng6 {[%emt 0:00:22]} 17. Nc6 {[%emt 0:02:26]} Qd6 {[%emt 0:00:45]} 18. Nxb8 {[%emt 0:00:03]} Raxb8 {[%emt 0:00:02]} 19. Bd4 {[%emt 0:00:21]} Rbc8 {[%emt 0:00:21]} 20. Rxc8 {[%emt 0:00:16]} Rxc8 {[%emt 0:00:06]} 21. Qa1 {[%emt 0:00:02]} Ne8 {[%emt 0:00:25][%cal Bf6e8,Be8c7,Bc7e6,Be6c5][%mdl 32]} 22. Rc1 {[%emt 0:00:03]} Rxc1+ {[%emt 0:00:26]} 23. Qxc1 {[%emt 0:00:03]} Nc7 {[%emt 0:00:01]} 24. Bb2 {[%emt 0:00:59] A strong pair of Bishops.} Qc5 {[%emt 0:00:50]} 25. Qc3 {[%emt 0:00:35][%csl Gb2][%cal Rc3g7] [#]} Ne6 {[%emt 0:00:12]} 26. Nd4 {[%emt 0:00:30]} Ne7 {[%emt 0:02:50] Repels Nf5} 27. Kf1 {[%emt 0:01:40][%cal Bg1f1,Bf1e1,Be1d2][%mdl 32]} Qxc3 {[%emt 0:00:49]} 28. Bxc3 {[%emt 0:00:01]} Nc5 {[%emt 0:00:01]} 29. f3 {[%emt 0:00:15]} f6 {[%emt 0:00:43]} 30. Ke1 {[%emt 0:00:11]} Kf7 {[%emt 0:00:07]} 31. Kd2 {[%emt 0:00:08]} g6 {[%emt 0:00:07]} 32. Bd1 {[%emt 0:00:43]} Nc8 {[%emt 0:00:26]} 33. h4 {[%emt 0:01:03]} Nd6 {[%emt 0:00:25]} 34. Bc2 {[%emt 0:00:22]} Ke7 {[%emt 0:00:22] [#]} 35. h5 $1 {[%emt 0:01:01]} f5 {[%emt 0:00:07]} (35... Kf7 36. Ne2) 36. hxg6 {[%emt 0:00:02]} hxg6 {[%emt 0:00:00]} 37. Ne2 {[%emt 0:00:43]} Ne6 {[%emt 0:00:16]} 38. Bb2 {[%emt 0:01:23]} Nb5 {[%emt 0:00:55]} 39. Nc1 {[%emt 0:00:44]} (39. Be5 $16) 39... d4 $11 {[%emt 0:00:08]} 40. a4 {[%emt 0:00:11]} dxe3+ {[%emt 0:00:08]} 41. Kxe3 {[%emt 0:00:02]} Nbc7 {[%emt 0:00:00]} 42. Nd3 {[%emt 0:00:11]} Nd5+ {[%emt 0:00:02]} 43. Kf2 {[%emt 0:00:03]} f4 {[%emt 0:00:09]} 44. Ne5 {[%emt 0:00:56]} g5 {[%emt 0:00:07]} 45. Be4 {[%emt 0:00:04]} Nc5 {[%emt 0:00:09]} 46. Ba3 {[%emt 0:00:07]} Ke6 $1 {[%emt 0:00:14][%csl LRb3,LRe5]} 47. Bxc5 {[%emt 0:00:11]} bxc5 {[%emt 0:00:16][%mdl 4096] Endgame KBN-KBN} 48. Nc4 {[%emt 0:00:30]} Bc6 {[%emt 0:00:18]} 49. g3 {[%emt 0:00:22]} Nb4 {[%emt 0:00:19]} 50. gxf4 {[%emt 0:00:13]} gxf4 {[%emt 0:00:18]} 51. Bb1 $2 {[%emt 0:01:30]} (51. Ke2 $11 {and White stays safe.}) 51... Bd5 {[%emt 0:00:23]} (51... Kd5 $142 52. Bf5 Kd4) 52. Nd2 {[%emt 0:00:23]} Ke5 {[%emt 0:00:06]} 53. Be4 {[%emt 0:00:16]} Be6 {[%emt 0:00:18]} 54. Bb7 {[%emt 0:00:16]} (54. a5) 54... Kd4 {[%emt 0:00:04]} 55. Ke2 {[%emt 0:00:03]} Bf5 {[%emt 0:01:01]} 56. a5 {[%emt 0:00:03]} (56. Be4 {was necessary.} Be6 57. Bb7) 56... Bd3+ $19 {[%emt 0:00:07]} 57. Kf2 {[%emt 0:00:12]} Bc2 {[%emt 0:00:33]} (57... Bb5 $19 {...Nc6 is the strong threat.} 58. Ne4 Nd3+ 59. Kg2 Nc1) 58. Bc8 $2 {[%emt 0:00:25] Loses the game.} (58. Kf1 $17) 58... Kc3 {[%emt 0:00:46]} 59. Ne4+ {[%emt 0:00:01]} Bxe4 $1 {[%emt 0:00:18]} (59... Kxb3 60. Nxc5+ Kc4 61. Nxa6 (61. Bxa6+ $2 Kxc5 62. Bc8 Bd3 $19) 61... Nxa6 62. Bxa6+ Kb4 63. Ke2 Kxa5 64. Kd2 $11) 60. fxe4 {[%emt 0:00:02]} Kxb3 {[%emt 0:00:01] KB-KN. Black is a pawn up.} 61. Kf3 $2 {[%emt 0:00:10]} (61. e5 Nd3+ 62. Kf3 Nxe5+ 63. Kxf4) 61... c4 {[%emt 0:00:26] ( -> ...c3)} 62. e5 {[%emt 0:00:03]} c3 {[%emt 0:00:28]} 63. e6 {[%emt 0:00:24]} Nc6 {[%emt 0:00:43] Black mates.} 64. Bb7 {[%emt 0:00:16]} c2 {[%emt 0:00:13]} ({And not} 64... Nxa5 65. e7 c2 (65... Nxb7 $2 66. e8=Q $18) 66. e8=Q $11) 65. Bxc6 {[%emt 0:00:03]} c1=Q {[%emt 0:00:02]} (65... c1=R $2 66. e7 Rxc6 67. e8=Q $18 (67. e8=B $2 {loses.} Rf6 $19)) 66. Bd5+ {[%emt 0:00:10]} Kb4 {[%emt 0:00:03]} 67. Ke4 {[%emt 0:00:10]} Qe3+ {[%emt 0:00:06]} 68. Kf5 {[%emt 0:00:02]} Kc5 {[%emt 0:00:10]} 69. Be4 {[%emt 0:00:04]} Kd6 {[%emt 0:03:18] Weighted Error Value: White=0.26 (precise) /Black=0.15 (very precise)   Loses game:     	White=2     	---        Mistake:       	White=4     	Black=3      Inaccurate:     	White=5     	Black=5      OK:         	White=12    	Black=19     Best:        	White=1     	Black=3      Strong:       	White=1     	Black=2} 0-1

[Event "Pashayeva Memorial Rapid 2025"]
[Site "Baku"]
[Date "2025.03.03"]
[Round "5.5"]
[White "Fataliyeva, Ulviyya"]
[Black "Aydin, Gulenay"]
[Result "0-1"]
[Annotator "TA"]
[ECO "A14"]
[WhiteElo "2381"]
[BlackElo "2265"]
[PlyCount "102"]
[EventDate "2025.03.01"]
[EventType "tourn"]
[EventCountry "AZE"]
[SourceTitle "playchess.com"]
[Source "ChessBase"]
[SourceQuality "1"]
[TimeControl "900+10"]

{[%evp 18,102,16,11,34,34,38,45,60,39,32,29,64,0,20,-12,12,0,10,-41,-40,-22,-37,-33,-22,-20,-33,-55,-39,-78,-9,-16,0,0,0,-89,-83,-95,-72,-76,40,0,0,0,24,12,60,-84,-91,-102,0,0,0,0,0,0,0,0,0,0,0,-771,-783,-1331,-1169,-1512,-1390,-2979,-3091,-2726,-2526,-5497,-9845,-7404,-5314,-29951,-29952,-2304,-8581,-29978,-29979,-29979,-29980,-29984,-29985,-29985,-29986]} 1. Nf3 {[%emt 0:00:03]} Nf6 {[%emt 0:00:11]} 2. c4 {[%emt 0:00:10]} e6 {[%emt 0:00:11]} 3. g3 {[%emt 0:00:06]} d5 {[%emt 0:00:09]} 4. Bg2 {[%emt 0:00:02]} Be7 {[%emt 0:00:03]} 5. O-O {[%emt 0:00:28]} O-O {[%emt 0:00:04]} 6. b3 {[%emt 0:00:04]} c6 {[%emt 0:03:52]} 7. Bb2 {[%emt 0:00:11]} b6 {[%emt 0:00:26]} 8. d3 {[%emt 0:00:23][%cal Bd2d3,Bd3e4,Be4e5][%mdl 32]} Bb7 {[%emt 0:00:14]} 9. Nbd2 {[%emt 0:00:18]} Nbd7 {[%emt 0:00:52]} 10. e4 {[%emt 0:00:57]} dxe4 {[%emt 0:04:55] A14: English Opening: 1...e6 with b3 by White.} 11. dxe4 {[%emt 0:00:09]} Nc5 {[%emt 0:00:19]} 12. Ne1 {[%emt 0:00:53]} Qc7 $146 {[%emt 0:01:57] White is slightly better.} (12... Qd7 13. e5 Ne8 14. b4 Rd8 15. bxc5 Qxd2 16. Qxd2 Rxd2 17. Bc3 Rd8 18. cxb6 axb6 {1-0 Ciocan,M (2036)-Popa,C (1737) ROM-ch U18 Girls 2018 (1)}) 13. e5 {[%emt 0:00:29]} Nfd7 {[%emt 0:00:03]} 14. f4 {[%emt 0:01:33]} f5 {[%emt 0:02:20]} 15. Ba3 {[%emt 0:00:44]} (15. b4 $14) 15... a5 {[%emt 0:00:19]} 16. Nef3 {[%emt 0:00:08]} Rfe8 {[%emt 0:00:23]} 17. Nd4 {[%emt 0:00:06]} Rad8 {[%emt 0:00:09][%cal Od7e5]} 18. N2f3 {[%emt 0:00:46]} (18. Bb2 $11) 18... Nf8 $15 {[%emt 0:00:08]} 19. Qc2 {[%emt 0:00:11]} Ne4 {[%emt 0:00:05]} 20. Bxe7 {[%emt 0:00:08]} Rxe7 {[%emt 0:00:07]} 21. Rad1 {[%emt 0:01:29]} Red7 {[%emt 0:00:04]} 22. Bh3 {[%emt 0:02:07][%cal Od4e6]} g6 {[%emt 0:00:24]} 23. g4 {[%emt 0:00:07]} c5 {[%emt 0:00:40]} (23... b5 $17 24. cxb5 Qb6 25. bxc6 Rc8 26. gxf5 (26. cxb7 Rxc2 27. b8=Q Qxb8 $19) 26... gxf5) 24. Nb5 $11 {[%emt 0:00:57]} Qb8 {[%emt 0:00:38][%cal Og6g5]} 25. g5 {[%emt 0:00:57]} Bc6 {[%emt 0:00:07]} 26. Bg2 {[%emt 0:00:09]} (26. a4 $1 $11) 26... Bxb5 $17 {[%emt 0:00:33]} 27. cxb5 {[%emt 0:00:02]} Qc7 {[%emt 0:00:03]} 28. Rfe1 {[%emt 0:02:55]} Kf7 {[%emt 0:00:07]} ({Black should play} 28... Rd5 $17 {[%cal Oc5c4]} 29. Rxd5 Rxd5) 29. Bf1 {[%emt 0:00:03] Wards off c4} Rxd1 {[%emt 0:00:22]} 30. Rxd1 {[%emt 0:00:02]} Rxd1 {[%emt 0:00:09]} 31. Qxd1 {[%emt 0:00:01]} Nc3 {[%emt 0:00:12]} (31... a4 $1 $11 {should be considered.}) 32. Qd6 {[%emt 0:00:31] [#]} (32. Qd2 $14 {keeps the upper hand.} Ne4 33. Qc2) 32... Qxd6 $1 {[%emt 0:00:09]} 33. exd6 {[%emt 0:00:01][%mdl 4096] Endgame KBN-KNN} Nd5 {[%emt 0:00:04]} (33... Nxa2 $17 {White must now prevent ...Ke8.} 34. Ne5+ Ke8) 34. Ne5+ $11 {[%emt 0:00:07]} Ke8 {[%emt 0:00:01]} 35. Bg2 {[%emt 0:00:03]} Nd7 {[%emt 0:00:20]} 36. Kf2 {[%emt 0:00:23]} Nxe5 {[%emt 0:00:18]} (36... Nxf4 $2 {perishes.} 37. Bc6 $18) 37. fxe5 {[%emt 0:00:02] Strongly threatening Bxd5. KB-KN} Nb4 {[%emt 0:00:06]} 38. Ke3 {[%emt 0:01:30] Against Nd3} Nxa2 {[%emt 0:00:02]} 39. h4 $2 {[%emt 0:00:06][%mdl 8192] [#]} (39. Bc6+ $11 Kd8 40. Kd2) 39... Nc1 $1 $19 {[%emt 0:00:19]} 40. h5 {[%emt 0:00:20]} Nxb3 {[%emt 0:00:12]} 41. hxg6 {[%emt 0:00:01]} hxg6 {[%emt 0:00:01]} 42. Kd3 {[%emt 0:00:13]} Nd4 {[%emt 0:00:07]} 43. Kc4 {[%emt 0:00:24]} Kd7 {[%emt 0:00:06]} 44. Bb7 {[%emt 0:00:16]} f4 {[%emt 0:00:12] ( -> ...f3)} 45. Be4 {[%emt 0:00:04]} f3 {[%emt 0:00:22] ( -> ...f2)} 46. Bxg6 {[%emt 0:00:02]} f2 {[%emt 0:00:10]} 47. Bd3 {[%emt 0:00:04]} Nf3 {[%emt 0:00:04][%csl LRe5,LRg5]} 48. Kc3 {[%emt 0:00:14]} Nxg5 {[%emt 0:00:17] Black mates.} 49. Kd2 {[%emt 0:00:08]} Nf3+ {[%emt 0:00:03]} 50. Ke3 {[%emt 0:00:01]} Nxe5 {[%emt 0:00:04]} 51. Bf1 {[%emt 0:00:00]} a4 {[%emt 0:00:21] Weighted Error Value: White=1.03/Black=0.13 (very precise)   Loses game:     	White=1     	---        Mistake:       	White=4     	Black=4      Inaccurate:     	White=3     	Black=1      OK:         	White=6     	Black=11     Best:        	White=2     	Black=2      Strong:       	---       	Black=2} 0-1

[Event "Pashayeva Memorial Rapid 2025"]
[Site "Baku"]
[Date "2025.03.03"]
[Round "6.1"]
[White "Salimova, Nurgyul"]
[Black "Aydin, Gulenay"]
[Result "1-0"]
[Annotator "TA"]
[ECO "D02"]
[WhiteElo "2404"]
[BlackElo "2265"]
[PlyCount "55"]
[EventDate "2025.03.01"]
[EventType "tourn"]
[EventCountry "AZE"]
[SourceTitle "playchess.com"]
[Source "ChessBase"]
[SourceQuality "1"]
[TimeControl "900+10"]

{[%evp 9,54,0,0,0,0,0,0,0,-7,0,-10,-25,-24,-12,-15,-18,-14,-58,-16,-91,-12,-16,-20,-25,-28,-86,-31,-17,0,-41,-38,-145,-138,-129,-100,-114,-128,-296,-305,-331,263,274,29997,29998,29998,29999,29999]} 1. d4 {[%emt 0:00:09]} d5 {[%emt 0:00:07]} 2. Nf3 {[%emt 0:00:08]} Nf6 {[%emt 0:00:03]} 3. Bf4 {[%emt 0:00:02]} c5 {[%emt 0:00:36]} 4. e3 {[%emt 0:00:04]} Nc6 {[%emt 0:00:02]} 5. Nbd2 {[%emt 0:00:08]} Qb6 {[%emt 0:00:26][%csl LRb2,LRd4]} 6. dxc5 {[%emt 0:00:09] D02: 1 d4 d5 2 Nf3 sidelines, including 2...Nf6 3 g3 and 2...Nf6 3 Bf4.} Qxb2 {[%emt 0:00:03]} 7. Rb1 {[%emt 0:00:01]} Qc3 {[%emt 0:00:02][%cal Oe7e6]} 8. Bb5 {[%emt 0:00:05] The position is equal.} e6 {[%emt 0:01:29][%cal Of8e7]} 9. O-O {[%emt 0:01:21]} Be7 {[%emt 0:00:48][%cal Oe8g8]} 10. Nb3 {[%emt 0:01:38]} O-O {[%emt 0:03:26]} 11. Bxc6 {[%emt 0:08:56]} bxc6 {[%emt 0:00:06]} 12. Be5 {[%emt 0:00:25]} Qc4 {[%emt 0:03:59]} 13. Nfd4 {[%emt 0:02:50]} Bd7 {[%emt 0:01:58]} 14. f3 $146 {[%emt 0:00:09] Dodges Ne4} (14. Nf3 $11) (14. Na5 Qxc5 15. Nb7 Qa3 16. Qd3 Ne4 17. Rb3 Qxa2 18. Nxc6 Bxc6 19. Ra1 Bb5 20. Rxa2 Bxd3 21. cxd3 {0-1 Victor,J (2297)-Volkov,M (2337) Titled Tuesday intern op 28th May Early blitz 2024 (1)}) 14... Bxc5 {[%emt 0:00:56]} (14... a5 $17 {Black wants to play ...a4.} 15. Qd3 Qxd3 16. cxd3 a4) 15. Nxc5 $11 {[%emt 0:00:09]} Qxc5 {[%emt 0:00:02]} 16. Rb7 {[%emt 0:00:05] [#]} Rfd8 {[%emt 0:00:47]} 17. Bc7 {[%emt 0:00:41]} (17. Qd2 $11) 17... Rdc8 {[%emt 0:00:13]} (17... Bc8 $1 $17 {[%cal Rc8b7]} 18. Bxd8 Bxb7 19. Bxf6 gxf6) 18. Be5 $15 {[%emt 0:00:02]} Rd8 {[%emt 0:01:49]} 19. Qe1 {[%emt 0:00:01]} Ne8 {[%emt 0:00:13]} 20. Qg3 {[%emt 0:00:25]} (20. Nb3 $1 $15 Qa3 21. Qc1 Qxc1 22. Rxc1) 20... f6 $17 {[%emt 0:00:42]} 21. Bc7 {[%emt 0:00:10]} Nxc7 {[%emt 0:00:14]} 22. Rxc7 {[%emt 0:00:07][%cal Og3g7] [#] Qxg7+! would now be deadly.} g6 {[%emt 0:00:30] ...e5 would now be deadly.} 23. Qh4 $2 {[%emt 0:00:56]} (23. f4 $17) 23... e5 $19 {[%emt 0:00:11]} 24. Ne6 {[%emt 0:00:09]} (24. Qxf6 exd4 25. exd4 Qf8 (25... Qxc2 $2 26. Qe5 $19) 26. Qxf8+ Kxf8) 24... Qxe3+ {[%emt 0:00:14][%mdl 8192]} ({Inferior is} 24... Bxe6 25. Qxh7+ (25. Qxf6 $2 {loses.} Bd7 $19) 25... Kf8 26. Qh8+ (26. Qxg6 Bd7 $16) 26... Bg8 27. Qg7+ (27. Qxf6+ Ke8 28. Qxe5+ Kf8 29. Qg7+ Ke8 30. Qxg8+ Qf8 31. Qxg6+ Qf7 32. Qxf7#) 27... Ke8 28. Qxg8+ Qf8 29. Qxg6+) (24... Qd6 $19 {avoids the disaster.} 25. Nxd8 Qxc7) 25. Kh1 $18 {[%emt 0:00:01]} Bxe6 $2 {[%emt 0:00:05]} (25... Kf7 $18) 26. Qxh7+ {[%emt 0:00:02] White mates.} Kf8 {[%emt 0:00:07]} 27. Qg7+ {[%emt 0:00:02]} Ke8 {[%emt 0:00:01]} 28. Qe7# {[%emt 0:00:12] Weighted Error Value: White=0.34/Black=0.54  Loses game:     	White=1     	---        Missed win:     	---       	Black=1      Mistake:       	White=3     	Black=3      Inaccurate:     	White=2     	Black=1      OK:         	White=5     	Black=10     Best:        	White=3     	---} 1-0

[Event "Pashayeva Memorial Rapid 2025"]
[Site "Baku"]
[Date "2025.03.03"]
[Round "6.2"]
[White "Mamedjarova, Turkan"]
[Black "Fataliyeva, Ulviyya"]
[Result "0-1"]
[Annotator "TA"]
[ECO "C54"]
[WhiteElo "2197"]
[BlackElo "2381"]
[PlyCount "104"]
[EventDate "2025.03.01"]
[EventType "tourn"]
[EventCountry "AZE"]
[SourceTitle "playchess.com"]
[Source "ChessBase"]
[SourceQuality "1"]
[TimeControl "900+10"]

{[%evp 15,104,0,0,-25,-20,-25,-27,-17,-25,-23,-18,-29,-29,-20,-22,-20,-22,-22,21,-58,-12,-26,0,0,0,-56,-25,-31,-17,-79,-76,-83,-71,-196,-18,-21,-22,-55,-14,-27,-16,-64,-57,-81,-66,-76,-81,-82,-77,-264,-259,-608,-598,-677,-679,-623,-128,-135,-134,-154,-131,-387,-213,-439,-428,-1038,-867,-862,-852,-29969,-29966,-6070,-1051,-1014,-985,-987,-961,-850,-801,-1520,-963,-5314,-1921,-5414,-5414,-2142,-1511,-1328,0,-1347,-429]} 1. e4 {[%emt 0:00:05]} e5 {[%emt 0:00:01]} 2. Nf3 {[%emt 0:00:03]} Nc6 {[%emt 0:00:02]} 3. Bc4 {[%emt 0:00:05]} Nf6 {[%emt 0:00:01]} 4. d3 {[%emt 0:00:11]} Bc5 {[%emt 0:00:02]} 5. c3 {[%emt 0:00:05]} d6 {[%emt 0:00:02]} 6. b4 {[%emt 0:00:03][%cal Bb2b4,Bb4b5][%mdl 32]} Bb6 {[%emt 0:00:02]} 7. a4 {[%emt 0:00:03] 7.0-0 is vanishing.} a5 {[%emt 0:00:45]} 8. b5 {[%emt 0:00:14]} Ne7 {[%emt 0:00:02]} 9. h3 {[%emt 0:00:05] C54: Giuoco Piano: 4 c3 Nf6, main lines with 5 d4 and 5 d3.} Ng6 {[%emt 0:00:21]} 10. O-O {[%emt 0:00:09]} O-O {[%emt 0:00:05]} 11. Re1 {[%emt 0:00:55] Black has an edge.} c6 {[%emt 0:00:09]} 12. Ba2 {[%emt 0:01:24]} d5 {[%emt 0:00:23]} 13. exd5 {[%emt 0:00:20]} Nxd5 {[%emt 0:00:02]} 14. d4 $146 {[%emt 0:01:13]} ({Predecessor:} 14. Bg5 Qd6 15. d4 exd4 16. bxc6 bxc6 17. cxd4 Be6 18. Bd2 Ndf4 19. Nc3 Bxa2 20. Rxa2 {1-0 Alexandre Bisquert,F (2303)-Potrata,J (2326) W-ch30 prel01 email 2006}) 14... exd4 {[%emt 0:00:23]} 15. cxd4 {[%emt 0:00:37]} Bf5 {[%emt 0:00:32]} 16. Bg5 {[%emt 0:00:24]} Qd6 {[%emt 0:00:33]} 17. Bxd5 {[%emt 0:00:32]} ({White should play} 17. Na3 $11) 17... Qxd5 {[%emt 0:00:31]} (17... cxd5 $15 18. Nc3 Rfc8) 18. Nc3 $11 {[%emt 0:00:15]} Qc4 {[%emt 0:00:10]} (18... Qd7 {simplifies} 19. Be3 Rfd8 20. d5 Bxe3 21. Rxe3 cxd5 22. Qd2 Be6) 19. Rc1 {[%emt 0:00:03]} Rfe8 {[%emt 0:00:20]} 20. Qd2 {[%emt 0:00:27]} (20. d5 $11) 20... h6 {[%emt 0:00:17][%csl Od4] Black attacks a weakness} 21. Be3 {[%emt 0:00:56]} Rad8 {[%emt 0:00:16]} 22. Qb2 {[%emt 0:00:40]} (22. Qd1 $11 {remains equal.}) 22... Qb4 $17 {[%emt 0:00:22]} 23. Qa1 {[%emt 0:00:02]} Bc7 {[%emt 0:00:31]} 24. d5 {[%emt 0:00:22] [#]} cxb5 $2 {[%emt 0:03:17]} (24... cxd5 25. Nxd5 Rxd5 26. Rxc7 $11) (24... Nh4 $1 $19 {[%cal Rh4f3]} 25. Nxh4 Qxh4) 25. Nxb5 $11 {[%emt 0:01:04]} Bf4 {[%emt 0:00:19]} 26. Nfd4 {[%emt 0:01:41]} Bd3 {[%emt 0:01:41] A strong pair of Bishops.} 27. Rcd1 {[%emt 0:01:27]} Bxe3 {[%emt 0:02:18]} 28. fxe3 {[%emt 0:01:05]} (28. Rxe3 $11 Rxe3 29. fxe3) 28... Be4 {[%emt 0:00:11][%cal Ob4e7]} 29. Nc3 {[%emt 0:00:28]} Nh4 {[%emt 0:01:44]} 30. Nxe4 {[%emt 0:00:14]} Rxe4 {[%emt 0:00:01]} 31. Qa2 {[%emt 0:00:09]} Qc5 {[%emt 0:00:59]} 32. d6 $2 {[%emt 0:01:15]} Rxd6 $19 {[%emt 0:00:30][%cal Oh4g2] [#]} (32... Qxd6 33. Rf1 Qg6 (33... Rxe3 $2 34. Qxf7+ Kh8 35. Nf5 $18) 34. Qf2 $19) 33. Rc1 $2 {[%emt 0:00:08]} (33. Kh1) 33... Qg5 {[%emt 0:00:04]} 34. Rc8+ {[%emt 0:00:22]} Kh7 {[%emt 0:00:31]} 35. Qc2 {[%emt 0:00:24]} Qg6 {[%emt 0:01:04] Active counter play!} (35... f5 $19 {[%cal Od6d4] and Black stays clearly on top. Hoping for ...Rdxd4!.} 36. Rc4 Rdxd4 (36... Rxe3 $2 37. Rxe3 Qxe3+ 38. Qf2 $19) (36... Rg6 $2 37. Re2 $19) 37. Rxd4 Nf3+ (37... Rxe3 $2 38. Rxe3 Qxe3+ 39. Qf2 $18) 38. Kf1 Nxe1 (38... Nxd4 $2 39. exd4 Qf4+ 40. Qf2 $19)) 36. Re2 $17 {[%emt 0:00:40]} Rd5 {[%emt 0:00:38]} 37. Kh1 {[%emt 0:00:32]} Rg5 {[%emt 0:00:54]} 38. g4 $2 {[%emt 0:00:10][%mdl 8192]} (38. Rb8 $17 {is a better defense.}) 38... Rge5 {[%emt 0:00:07]} (38... h5 $142 39. Qc7 hxg4 40. Qxb7 (40. Qb8 $2 Qf6 $19) 40... gxh3) 39. Rc3 $2 {[%emt 0:01:29]} (39. Rc5) 39... h5 $19 {[%emt 0:00:16]} 40. gxh5 {[%emt 0:00:26]} (40. Rf2 $142) 40... Rxh5 {[%emt 0:00:04]} 41. Rf2 {[%emt 0:00:13]} Rg5 {[%emt 0:00:12]} 42. Nf3 {[%emt 0:00:18] Against Rg1+} Rg3 {[%emt 0:00:55][%csl LRf3,LRh3]} 43. Qe2 {[%emt 0:00:27]} Rxh3+ {[%emt 0:00:10]} (43... Rxa4 $142 44. Rc1 Nxf3 (44... Rxh3+ $2 45. Rh2 $19) 45. Rxf3 Rh4 (45... Qe4 $2 46. Rcf1 $19) 46. Rxg3 Qxg3) 44. Rh2 {[%emt 0:00:00]} Rxh2+ {[%emt 0:00:26]} 45. Qxh2 {[%emt 0:00:03]} Qh5 {[%emt 0:00:04]} 46. Ng1 {[%emt 0:00:10]} Qd5 {[%emt 0:00:07]} 47. Nf3 {[%emt 0:00:18]} Rg4 {[%emt 0:00:04]} 48. e4 {[%emt 0:00:08]} Qxe4 {[%emt 0:00:14]} (48... Qd1+ $142 49. Ng1 Qe1 (49... Rxe4 $2 50. Qa2 $19) (49... Qxa4 $2 50. Qe2 $19)) 49. Qh3 {[%emt 0:00:00]} Qb1+ {[%emt 0:00:16]} 50. Kh2 {[%emt 0:00:01]} Qb2+ {[%emt 0:00:01]} (50... Rxa4 51. Nxh4 Qb2+ 52. Ng2+ Kg6 53. Rg3+ Kf6 54. Rf3+ Ke7 55. Qf5 $18) 51. Kh1 {[%emt 0:00:04]} Qb1+ {[%emt 0:00:20]} ({Inferior is} 51... Qxc3 52. Ng5+ Rxg5 53. Qxc3 $11) 52. Kh2 {[%emt 0:00:01]} Rg2+ {[%emt 0:00:02] Weighted Error Value: White=0.97/Black=0.75  Loses game:     	White=2     	---        Missed win:     	---       	Black=1      Mistake:       	White=8     	Black=2      Inaccurate:     	White=1     	Black=4      OK:         	White=7     	Black=8      Best:        	White=1     	Black=5} (52... Rxa4 $2 {perishes.} 53. Nxh4 Qb2+ 54. Ng2+ Kg6 55. Rg3+ Kf6 56. Rf3+ Ke7 57. Qf5 $18) 0-1